bitfinex/quotes_BTCUSD_20250110
["timestamp","ask_amount","ask_price","bid_price","bid_amount"]
[1736510037174,0.006,95038.0,95037.0,0.03580045]
[1736510037731,0.006,95038.0,95037.0,0.02068223]
[1736510039586,0.006,95038.0,95037.0,0.001]
[1736510040886,0.21050681,95041.0,95036.0,0.0808]
[1736510041091,7.181e-05,95041.0,95036.0,0.0808]
[1736510041276,0.005,95038.0,95036.0,0.0808]
[1736510041571,0.005,95038.0,95037.0,0.01968223]
[1736510042018,0.005,95038.0,95037.0,0.03542845]
[1736510042230,0.00123203,95041.0,95037.0,0.03542845]
[1736510042439,0.00723203,95041.0,95037.0,0.03542845]
[1736510042645,0.00723203,95041.0,95037.0,0.01968223]
[1736510042850,0.00123203,95041.0,95037.0,0.01968223]
[1736510044290,0.005,95038.0,95037.0,0.01968223]
[1736510044488,0.00123203,95041.0,95037.0,0.01968223]
[1736510044919,0.00723203,95041.0,95037.0,0.02068223]
[1736510047438,0.00723203,95041.0,95037.0,0.001]
[1736510047808,0.210437,95040.0,95037.0,0.001]
[1736510048018,0.00116022,95039.0,95037.0,0.001]
[1736510048230,0.12416022,95039.0,95038.0,0.01967861]
[1736510048796,0.233442,95038.0,95037.0,0.001]
[1736510049547,0.233442,95038.0,95030.0,0.0795]
[1736510049548,0.210444,95037.0,95030.0,0.0795]
[1736510049773,0.00116022,95036.0,95030.0,0.0795]
[1736510050910,0.210453,95034.0,95030.0,0.0795]
[1736510051061,0.00116022,95033.0,95030.0,0.0805]
[1736510052312,0.00416022,95033.0,95030.0,0.0805]
[1736510052484,0.00416022,95033.0,95030.0,0.0795]
[1736510052887,0.00416022,95033.0,95030.0,0.0805]
[1736510053267,0.00416022,95033.0,95030.0,0.0795]
[1736510053468,0.00416022,95033.0,95031.0,0.01970439]
[1736510054548,0.00116022,95033.0,95031.0,0.01970439]
[1736510054781,0.00116022,95036.0,95031.0,0.01970439]
[1736510054981,0.01064246,95033.0,95031.0,0.01970439]
[1736510055189,0.00116022,95032.0,95030.0,0.0795]
[1736510055784,0.00116022,95032.0,95031.0,0.001]
[1736510056279,0.00116022,95032.0,95030.0,0.0795]
[1736510056736,0.00116022,95032.0,95030.0,0.0805]
[1736510057728,0.00316022,95032.0,95030.0,0.0805]
[1736510058905,0.00116022,95032.0,95030.0,0.0795]
[1736510059339,0.00316022,95032.0,95030.0,0.0805]
[1736510059757,0.00316022,95032.0,95030.0,0.0795]
[1736510060099,0.00316022,95032.0,95030.0,0.0825]
[1736510060704,0.00116022,95032.0,95030.0,0.0825]
[1736510060904,0.00116022,95033.0,95030.0,0.0835]
[1736510061307,0.00116022,95036.0,95030.0,0.0835]
[1736510061648,0.00116022,95036.0,95030.0,0.0825]
[1736510062057,0.00116022,95036.0,95030.0,0.0805]
[1736510062289,0.00116022,95037.0,95030.0,0.0805]
[1736510062425,0.00116022,95037.0,95030.0,0.0825]
[1736510062607,0.00116022,95037.0,95030.0,0.0815]
[1736510062807,0.03365395,95038.0,95030.0,0.0815]
[1736510063103,0.03365395,95038.0,95030.0,0.0795]
[1736510063235,0.03365395,95038.0,95031.0,0.02030091]
[1736510064779,0.03365395,95038.0,95031.0,0.02230091]
[1736510065126,0.00116022,95037.0,95030.0,0.06180091]
[1736510065267,0.00116022,95037.0,95031.0,0.01691743]
[1736510066139,0.03481417,95038.0,95031.0,0.01691743]
[1736510066606,0.01065395,95038.0,95031.0,0.01691743]
[1736510066805,7.181e-05,95041.0,95031.0,0.01991743]
[1736510067365,7.181e-05,95041.0,95031.0,0.01691743]
[1736510067510,7.181e-05,95041.0,95031.0,0.01891743]
[1736510067720,7.181e-05,95041.0,95031.0,0.02291743]
[1736510067921,0.00123203,95041.0,95031.0,0.02291743]
[1736510068385,0.00223203,95041.0,95031.0,0.03091743]
[1736510069184,0.00223203,95041.0,95031.0,0.02491743]
[1736510069389,0.00223203,95041.0,95031.0,0.02991743]
[1736510070561,0.00223203,95041.0,95037.0,0.02077728]
[1736510070754,0.00107181,95041.0,95037.0,0.02077728]
[1736510071003,0.00116022,95040.0,95038.0,0.0796]
[1736510071179,0.00107181,95041.0,95038.0,0.0796]
[1736510071376,0.00107181,95041.0,95039.0,0.01688846]
[1736510071576,7.181e-05,95041.0,95039.0,0.01688846]
[1736510072355,0.00107181,95041.0,95039.0,0.01688846]
[1736510072739,0.01161385,95042.0,95039.0,0.01688846]
[1736510072740,0.01101268,95042.0,95039.0,0.01688846]
[1736510072909,0.01106399,95042.0,95039.0,0.01688846]
[1736510074067,0.001,95041.0,95039.0,0.02488846]
[1736510074259,0.01106399,95042.0,95039.0,0.02188846]
[1736510074688,0.01206399,95042.0,95039.0,0.02888846]
[1736510074884,0.01106399,95042.0,95039.0,0.02188846]
[1736510075486,0.001,95041.0,95039.0,0.02988846]
[1736510076008,0.001,95041.0,95039.0,0.02488846]
[1736510076249,0.001,95041.0,95039.0,0.02988846]
[1736510076821,0.01106399,95042.0,95039.0,0.02188846]
[1736510077126,0.01206399,95042.0,95039.0,0.02988846]
[1736510077623,0.01106399,95042.0,95039.0,0.02188846]
[1736510077827,0.001,95041.0,95039.0,0.02488846]
[1736510077972,0.01106399,95042.0,95039.0,0.01688846]
[1736510078174,0.22149699,95042.0,95039.0,0.01688846]
[1736510078379,0.22133677,95042.0,95039.0,0.02488846]
[1736510078627,0.22133677,95042.0,95039.0,0.01688846]
[1736510079189,0.22133677,95042.0,95039.0,0.02188846]
[1736510079488,0.00116022,95041.0,95039.0,0.02188846]
[1736510079975,0.00216022,95041.0,95039.0,0.02988846]
[1736510080304,0.00216022,95041.0,95039.0,0.02488846]
[1736510080695,0.00216022,95041.0,95039.0,0.02988846]
[1736510085273,0.001,95041.0,95039.0,0.02988846]
[1736510085629,0.001,95041.0,95039.0,0.02488846]
[1736510085831,0.001,95041.0,95039.0,0.02788846]
[1736510086278,0.00116022,95041.0,95039.0,0.01988846]
[1736510086435,0.00116022,95041.0,95039.0,0.01688846]
[1736510086632,0.00116022,95041.0,95039.0,0.02088846]
[1736510087049,0.00116022,95041.0,95039.0,0.02388846]
[1736510088625,0.00990377,95042.0,95039.0,0.02388846]
[1736510088821,5.131e-05,95042.0,95040.0,0.01590685]
[1736510089026,5.131e-05,95042.0,95041.0,0.1294]
[1736510089344,5.131e-05,95042.0,95041.0,0.25057917]
[1736510089699,5.131e-05,95042.0,95041.0,0.46101417]
[1736510091009,0.00105131,95042.0,95041.0,0.46801417]
[1736510091295,0.00105131,95042.0,95041.0,0.57231393]
[1736510092081,0.00105131,95042.0,95041.0,0.57631393]
[1736510102618,0.00105131,95042.0,95041.0,0.36587893]
[1736510102826,0.00105131,95042.0,95041.0,0.15727941]
[1736510115714,0.00105131,95042.0,95041.0,0.10877941]
[1736510116888,0.00105131,95042.0,95041.0,0.15817941]
[1736510117285,0.00105131,95042.0,95041.0,0.26247917]
[1736510121105,0.00105131,95042.0,95041.0,0.26971917]
[1736510121483,0.00105131,95042.0,95041.0,0.37401893]
[1736510123277,0.00105131,95042.0,95041.0,1.87401893]
[1736510123482,0.00105131,95042.0,95041.0,0.40692392]
[1736510124011,5.131e-05,95042.0,95041.0,0.39992392]
[1736510124177,0.00105131,95042.0,95041.0,0.40692392]
[1736510124608,0.00105131,95042.0,95041.0,0.40292392]
[1736510125037,0.00105131,95042.0,95041.0,0.40692392]
[1736510125418,0.00105131,95042.0,95041.0,0.40292392]
[1736510125816,0.00105131,95042.0,95041.0,0.40692392]
[1736510126268,5.131e-05,95042.0,95041.0,0.39592392]
[1736510126439,5.131e-05,95042.0,95041.0,0.40092392]
[1736510126652,5.131e-05,95042.0,95041.0,0.40492392]
[1736510127234,5.131e-05,95042.0,95041.0,0.39992392]
[1736510127633,5.131e-05,95042.0,95041.0,0.40692392]
[1736510127832,5.131e-05,95042.0,95041.0,0.55292392]
[1736510128259,5.131e-05,95042.0,95041.0,0.55792392]
[1736510128685,5.131e-05,95042.0,95041.0,0.55292392]
[1736510129298,5.131e-05,95042.0,95041.0,0.54592392]
[1736510129656,5.131e-05,95042.0,95041.0,0.56192392]
[1736510130177,5.131e-05,95042.0,95041.0,0.88892392]
[1736510130783,0.0001706,95057.0,95056.0,0.335002]
[1736510130940,0.0001706,95057.0,95056.0,2.03779682]
[1736510132609,0.0001706,95057.0,95056.0,2.04279682]
[1736510133189,0.0001706,95057.0,95056.0,0.54279682]
[1736510133393,0.00021937,95057.0,95056.0,0.54279682]
[1736510133831,0.00021937,95057.0,95056.0,0.54979682]
[1736510134752,0.00021937,95057.0,95056.0,0.87679682]
[1736510134931,0.00021937,95057.0,95056.0,1.02679682]
[1736510136033,0.00021937,95057.0,95056.0,1.0482802]
[1736510136239,0.00021937,95057.0,95056.0,2.5482802]
[1736510137320,0.00021937,95057.0,95056.0,2.55862361]
[1736510137538,0.00021937,95057.0,95056.0,2.52571862]
[1736510141918,0.00021937,95057.0,95056.0,2.94371793]
[1736510142983,0.00021937,95057.0,95056.0,2.52571862]
[1736510152472,0.00021937,95057.0,95056.0,2.55849773]
[1736510154855,0.00021937,95057.0,95056.0,2.56573773]
[1736510156134,0.00021937,95057.0,95056.0,2.98373704]
[1736510157185,0.00021937,95057.0,95056.0,2.56573773]
[1736510158038,0.00021937,95057.0,95056.0,2.98373704]
[1736510158695,0.00021937,95057.0,95056.0,2.56573773]
[1736510158897,0.00021937,95057.0,95056.0,2.98373704]
[1736510160777,0.00021937,95057.0,95056.0,2.56573773]
[1736510165839,0.00021937,95057.0,95056.0,0.93389773]
[1736510166068,0.00021937,95057.0,95056.0,0.93079432]
[1736510166267,0.00021937,95057.0,95056.0,0.73279373]
[1736510166701,0.00021937,95057.0,95056.0,0.70001462]
[1736510167251,0.00021937,95057.0,95056.0,0.88290888]
[1736510167457,0.00021937,95057.0,95056.0,0.95800888]
[1736510168081,0.00021937,95057.0,95056.0,1.37657675]
[1736510168285,0.00021937,95057.0,95056.0,1.48087651]
[1736510169085,0.00021937,95057.0,95056.0,1.06230864]
[1736510171835,0.00021937,95057.0,95056.0,2.56230864]
[1736510175172,0.00021937,95057.0,95056.0,1.06230864]
[1736510175588,0.00021937,95057.0,95056.0,2.56230864]
[1736510178489,0.00021937,95057.0,95056.0,1.06230864]
[1736510179091,0.00021937,95057.0,95056.0,2.56230864]
[1736510181260,0.00021937,95057.0,95056.0,1.10960864]
[1736510185346,0.00021937,95057.0,95056.0,2.60960864]
[1736510188280,0.00021937,95057.0,95056.0,1.10960864]
[1736510189007,0.00021937,95057.0,95056.0,2.60960864]
[1736510192951,0.00021937,95057.0,95056.0,2.60236864]
[1736510193182,0.00021937,95057.0,95056.0,2.60960864]
[1736510193354,0.00021937,95057.0,95056.0,2.92920099]
[1736510193735,0.00021937,95057.0,95056.0,2.60960864]
[1736510205214,0.00021937,95057.0,95056.0,1.10960864]
[1736510208040,0.00021937,95057.0,95056.0,2.60960864]
[1736510212568,0.00021937,95057.0,95056.0,2.92913667]
[1736510213995,7.7e-07,95061.0,95060.0,0.360393]
[1736510214154,7.7e-07,95061.0,95060.0,0.67858761]
[1736510214350,7.7e-07,95061.0,95060.0,0.69696004]
[1736510214796,7.7e-07,95061.0,95060.0,2.19696004]
[1736510214999,0.0826,95106.0,95080.0,0.5991]
[1736510215199,0.00021937,95081.0,95080.0,1.04258822]
[1736510215401,0.00021937,95081.0,95080.0,1.06088157]
[1736510215612,0.00021937,95081.0,95080.0,2.56088157]
[1736510216168,0.00021937,95081.0,95080.0,2.56488157]
[1736510217204,0.00021937,95081.0,95080.0,2.56988157]
[1736510219147,0.00021937,95081.0,95080.0,2.59118881]
[1736510219777,0.00021937,95081.0,95080.0,1.10173712]
[1736510222056,0.00021937,95081.0,95080.0,1.10897712]
[1736510223711,0.00021937,95081.0,95080.0,2.60897712]
[1736510224806,0.00021937,95081.0,95080.0,1.10897712]
[1736510226349,0.00021937,95081.0,95080.0,1.10497712]
[1736510226575,0.00021937,95081.0,95080.0,1.09997712]
[1736510226953,0.00021937,95081.0,95080.0,1.10897712]
[1736510227758,0.00021937,95081.0,95080.0,1.11297712]
[1736510228232,0.00021937,95081.0,95080.0,1.10897712]
[1736510228433,0.00021937,95081.0,95080.0,1.11497712]
[1736510228614,0.00021937,95081.0,95080.0,2.61497712]
[1736510230034,0.014185,95111.0,95081.0,0.15]
[1736510230035,9.7e-07,95082.0,95081.0,0.15]
[1736510230233,2.7e-07,95088.0,95087.0,0.439733]
[1736510230433,2.7e-07,95088.0,95087.0,0.92218083]
[1736510230716,2.7e-07,95088.0,95087.0,2.42218083]
[1736510232536,2.7e-07,95088.0,95087.0,2.43918083]
[1736510235299,2.7e-07,95088.0,95087.0,0.93918083]
[1736510235500,2.7e-07,95088.0,95087.0,1.03512603]
[1736510235914,2.7e-07,95088.0,95087.0,2.53512603]
[1736510236090,0.014185,95111.0,95087.0,2.55812603]
[1736510236299,0.014185,95111.0,95110.0,0.210282]
[1736510236468,0.014185,95111.0,95110.0,0.32182176]
[1736510236670,0.01467276,95111.0,95110.0,0.37216917]
[1736510236868,0.01467276,95111.0,95110.0,1.87216917]
[1736510237185,0.01467276,95111.0,95110.0,0.37216917]
[1736510239090,0.01467276,95111.0,95110.0,0.37716917]
[1736510239422,0.01467276,95111.0,95110.0,0.39808956]
[1736510239804,0.01467276,95111.0,95110.0,0.40208956]
[1736510241136,0.01467276,95111.0,95110.0,0.41258122]
[1736510244408,0.01467276,95111.0,95110.0,0.40208956]
[1736510244607,0.09237276,95111.0,95110.0,0.17088717]
[1736510244840,0.09237276,95111.0,95110.0,0.02716523]
[1736510245043,0.09237276,95111.0,95110.0,0.03440523]
[1736510245264,0.09353298,95111.0,95110.0,0.009]
[1736510245460,0.35131298,95111.0,95110.0,0.009]
[1736510245690,0.35015276,95111.0,95110.0,0.009]
[1736510246583,0.35015276,95111.0,95110.0,0.004]
[1736510246942,0.35015276,95111.0,95107.0,0.00724]
[1736510247348,0.35015276,95111.0,95110.0,0.001]
[1736510247561,0.13987276,95111.0,95110.0,0.00824]
[1736510247757,0.13987276,95111.0,95110.0,0.00724]
[1736510248888,0.13987276,95111.0,95110.0,0.00924]
[1736510249748,0.13987276,95111.0,95110.0,0.01024]
[1736510253023,0.12998276,95111.0,95110.0,0.01024]
[1736510258038,0.12998276,95111.0,95110.0,0.00824]
[1736510258216,0.12998276,95111.0,95110.0,0.01024]
[1736510258416,0.12998276,95111.0,95110.0,0.00924]
[1736510258786,0.12998276,95111.0,95110.0,0.01024]
[1736510262055,0.08248276,95111.0,95110.0,0.01024]
[1736510262505,0.00478276,95111.0,95110.0,0.01024]
[1736510263581,0.00478276,95111.0,95110.0,0.00924]
[1736510264108,0.00478276,95111.0,95110.0,0.00724]
[1736510264308,0.00478276,95111.0,95110.0,0.00924]
[1736510265516,0.00478276,95111.0,95110.0,0.01024]
[1736510265771,0.00478276,95111.0,95110.0,0.00924]
[1736510266206,0.00478276,95111.0,95110.0,0.00824]
[1736510266787,0.00478276,95111.0,95110.0,0.00724]
[1736510267186,0.00478276,95111.0,95110.0,0.00824]
[1736510267388,0.00478276,95111.0,95110.0,0.01024]
[1736510267834,0.00478276,95111.0,95110.0,0.00824]
[1736510268354,0.00478276,95111.0,95110.0,0.01024]
[1736510270320,0.00478276,95111.0,95110.0,0.02870607]
[1736510270463,0.00478276,95111.0,95110.0,0.01024]
[1736510270665,0.00478276,95111.0,95110.0,0.02870607]
[1736510278750,0.00478276,95111.0,95110.0,0.05480581]
[1736510278955,0.00478276,95111.0,95110.0,0.15910557]
[1736510279196,0.00478276,95111.0,95110.0,0.23520557]
[1736510285094,0.00478276,95111.0,95110.0,0.23320557]
[1736510286104,0.00478276,95111.0,95110.0,0.23220557]
[1736510286310,0.00478276,95111.0,95110.0,0.23520557]
[1736510286652,0.00478276,95111.0,95110.0,0.23420557]
[1736510286849,0.00478276,95111.0,95110.0,0.23720557]
[1736510287056,0.00478276,95111.0,95110.0,0.24120557]
[1736510290752,0.00478276,95111.0,95110.0,0.32013965]
[1736510290907,0.00478276,95111.0,95110.0,0.73799383]
[1736510291110,0.00478276,95111.0,95110.0,0.70515975]
[1736510291328,0.00478276,95111.0,95110.0,0.28730557]
[1736510292154,0.00478276,95111.0,95110.0,0.32013647]
[1736510293146,0.00478276,95111.0,95110.0,0.31513647]
[1736510293548,0.00478276,95111.0,95110.0,0.32413647]
[1736510293753,0.00478276,95111.0,95110.0,0.31113647]
[1736510293955,0.00478276,95111.0,95110.0,0.31713647]
[1736510294179,0.00478276,95111.0,95110.0,0.32613647]
[1736510294554,0.00478276,95111.0,95110.0,0.32013647]
[1736510294767,0.00478276,95111.0,95110.0,0.32713647]
[1736510294963,0.00478276,95111.0,95110.0,0.74576619]
[1736510295387,0.00170976,95111.0,95110.0,0.74576619]
[1736510295591,0.00170976,95111.0,95110.0,0.71293529]
[1736510296835,0.00170976,95111.0,95110.0,0.29430557]
[1736510303444,0.00170976,95111.0,95110.0,0.28706557]
[1736510303645,0.00170976,95111.0,95110.0,0.29430557]
[1736510306487,0.00170976,95111.0,95110.0,0.32711493]
[1736510313842,0.00170976,95111.0,95110.0,0.74574465]
[1736510316730,0.00170976,95111.0,95110.0,0.32711493]
[1736510325260,0.00170976,95111.0,95110.0,0.31987493]
[1736510325463,0.00170976,95111.0,95110.0,0.32711493]
[1736510327593,0.00170976,95111.0,95110.0,0.47711493]
[1736510328797,0.00170976,95111.0,95110.0,1.97711493]
[1736510329527,8.53e-05,95127.0,95111.0,0.1319]
[1736510329850,0.00023157,95127.0,95126.0,0.292947]
[1736510330059,0.00023157,95127.0,95126.0,0.43005612]
[1736510330267,0.00023157,95127.0,95126.0,0.44895627]
[1736510331280,0.00023157,95127.0,95126.0,0.45795627]
[1736510332606,0.00023157,95127.0,95126.0,0.47866293]
[1736510332800,0.00023157,95127.0,95126.0,0.59239666]
[1736510334899,0.05,95142.0,95141.0,0.257714]
[1736510335104,0.05,95142.0,95141.0,0.40204208]
[1736510335317,0.05,95142.0,95141.0,0.38809376]
[1736510335535,0.05,95142.0,95141.0,0.4141935]
[1736510336097,0.05,95142.0,95141.0,0.4181935]
[1736510336494,0.001,95152.0,95149.0,0.210196]
[1736510336722,0.001,95152.0,95149.0,0.31449576]
[1736510336903,0.001,95152.0,95149.0,0.40679202]
[1736510337259,0.001,95152.0,95149.0,0.48649202]
[1736510337463,0.001,95152.0,95149.0,0.40679202]
[1736510337878,0.001,95152.0,95149.0,0.20383602]
[1736510338086,0.001,95152.0,95149.0,0.02380488]
[1736510338308,0.001,95152.0,95149.0,0.03104488]
[1736510338628,0.001,95152.0,95149.0,0.02634287]
[1736510338824,0.001,95152.0,95149.0,0.13064263]
[1736510339026,0.001,95152.0,95149.0,0.13534358]
[1736510339205,0.001,95152.0,95149.0,0.19904834]
[1736510339407,0.001,95152.0,95149.0,0.20409918]
[1736510339611,0.001,95152.0,95149.0,0.20304834]
[1736510341817,0.001,95152.0,95149.0,0.21351693]
[1736510343265,0.0756,95169.0,95160.0,0.21017]
[1736510343493,0.07574624,95169.0,95161.0,0.12531676]
[1736510343694,0.07574624,95169.0,95161.0,0.14407753]
[1736510346430,0.07574624,95169.0,95162.0,0.02084748]
[1736510346658,0.07574624,95169.0,95163.0,0.10429976]
[1736510346857,0.07574624,95169.0,95164.0,0.01757859]
[1736510347293,0.07574624,95169.0,95165.0,0.01873383]
[1736510347938,0.00014624,95169.0,95166.0,0.10429976]
[1736510348272,0.00014624,95169.0,95167.0,0.01872661]
[1736510348633,0.00014624,95169.0,95168.0,0.10429976]
[1736510348811,0.00014624,95169.0,95168.0,0.16800452]
[1736510349009,0.00014624,95169.0,95168.0,0.18672752]
[1736510349623,0.00014624,95169.0,95168.0,0.18777823]
[1736510349828,0.00014624,95169.0,95168.0,0.18672752]
[1736510350420,0.00014624,95169.0,95168.0,0.18972752]
[1736510350835,0.00014624,95169.0,95168.0,0.20034713]
[1736510351032,0.00014624,95169.0,95168.0,0.21058713]
[1736510352181,0.00014624,95169.0,95168.0,0.33448713]
[1736510352626,0.00014624,95169.0,95168.0,1.83448713]
[1736510353417,0.00014624,95169.0,95168.0,1.98148713]
[1736510353649,0.00014624,95169.0,95168.0,1.98748713]
[1736510353889,0.00014624,95169.0,95168.0,1.98448713]
[1736510354124,0.00014624,95169.0,95168.0,1.99348713]
[1736510356464,0.00014624,95169.0,95168.0,2.32048713]
[1736510359470,0.00014624,95169.0,95168.0,0.81324713]
[1736510359717,0.00014624,95169.0,95168.0,0.49348713]
[1736510361587,0.00014624,95169.0,95168.0,0.79348713]
[1736510361789,2.4e-07,95169.0,95168.0,0.82610744]
[1736510361972,2.4e-07,95169.0,95168.0,0.92603586]
[1736510362170,2.4e-07,95169.0,95168.0,0.77610744]
[1736510362359,2.4e-07,95169.0,95168.0,2.37603586]
[1736510364127,2.4e-07,95169.0,95168.0,2.37003586]
[1736510364573,2.4e-07,95169.0,95168.0,2.36103586]
[1736510364801,2.4e-07,95169.0,95168.0,2.37003586]
[1736510365047,2.4e-07,95169.0,95168.0,2.37903586]
[1736510365492,2.4e-07,95169.0,95168.0,2.70603586]
[1736510366493,5.4e-07,95177.0,95176.0,0.46006542]
[1736510366730,5.4e-07,95177.0,95176.0,0.84110249]
[1736510366970,5.4e-07,95177.0,95176.0,0.85977346]
[1736510367208,5.4e-07,95177.0,95176.0,2.77479477]
[1736510367426,5.4e-07,95177.0,95176.0,3.12479477]
[1736510367646,5.4e-07,95177.0,95176.0,2.71777346]
[1736510367852,5.4e-07,95177.0,95176.0,2.72677346]
[1736510368924,5.4e-07,95177.0,95176.0,2.62684504]
[1736510369866,5.4e-07,95177.0,95176.0,2.63404504]
[1736510371211,5.4e-07,95177.0,95176.0,3.18194504]
[1736510372713,1.4e-07,95189.0,95188.0,0.09992842]
[1736510372876,1.4e-07,95189.0,95188.0,0.48097728]
[1736510373077,1.4e-07,95189.0,95188.0,0.39861584]
[1736510373483,1.4e-07,95189.0,95188.0,0.40581584]
[1736510373693,1.4e-07,95189.0,95188.0,0.42728047]
[1736510373894,1.4e-07,95189.0,95188.0,0.43528047]
[1736510374095,1.4e-07,95189.0,95188.0,0.44428047]
[1736510374352,1.4e-07,95189.0,95188.0,0.44699947]
[1736510374770,1.4e-07,95189.0,95188.0,0.45599947]
[1736510376662,1.4e-07,95189.0,95188.0,1.95599947]
[1736510383230,1.4e-07,95189.0,95188.0,2.28299947]
[1736510394438,1.4e-07,95189.0,95188.0,2.26499947]
[1736510394854,1.4e-07,95189.0,95188.0,0.78299947]
[1736510395075,1.4e-07,95189.0,95188.0,0.77399947]
[1736510395281,1.4e-07,95189.0,95188.0,0.76499947]
[1736510395492,1.4e-07,95189.0,95188.0,2.27399947]
[1736510395659,1.4e-07,95189.0,95188.0,2.28299947]
[1736510396763,1.4e-07,95189.0,95188.0,2.27368849]
[1736510397216,1.4e-07,95189.0,95188.0,2.19098849]
[1736510397423,1.4e-07,95189.0,95188.0,2.19818849]
[1736510398002,1.4e-07,95189.0,95188.0,2.18918849]
[1736510398434,1.4e-07,95189.0,95188.0,0.68918849]
[1736510398608,1.4e-07,95189.0,95188.0,0.69818849]
[1736510398807,1.4e-07,95189.0,95188.0,2.19818849]
[1736510399387,1.4e-07,95189.0,95188.0,2.18918849]
[1736510399684,1.4e-07,95189.0,95188.0,2.19818849]
[1736510400262,1.4e-07,95189.0,95188.0,0.37118849]
[1736510401275,1.4e-07,95189.0,95188.0,0.44938849]
[1736510401866,1.4e-07,95189.0,95188.0,0.43138849]
[1736510402281,1.4e-07,95189.0,95188.0,1.94938849]
[1736510402478,1.4e-07,95189.0,95188.0,0.44218849]
[1736510402795,1.4e-07,95189.0,95188.0,0.44938849]
[1736510403582,1.4e-07,95189.0,95188.0,0.49438849]
[1736510403810,1.4e-07,95189.0,95188.0,0.48718849]
[1736510404060,1.4e-07,95189.0,95188.0,0.09211014]
[1736510404219,0.00116036,95189.0,95188.0,0.08859114]
[1736510404414,0.00116036,95189.0,95188.0,0.07959114]
[1736510404616,0.08366036,95189.0,95188.0,0.04697083]
[1736510405022,0.08250014,95189.0,95188.0,0.05597083]
[1736510405242,0.08250014,95189.0,95188.0,0.03797083]
[1736510405243,0.12950014,95189.0,95188.0,0.03797083]
[1736510405454,0.12950014,95189.0,95180.0,0.41771999]
[1736510405455,0.0823,95182.0,95180.0,0.41771999]
[1736510405796,0.0823,95182.0,95180.0,0.0072]
[1736510405797,0.0353,95181.0,95180.0,0.0072]
[1736510406220,1.4e-07,95189.0,95180.0,0.0072]
[1736510406221,0.0353,95188.0,95180.0,0.0072]
[1736510406425,0.0353,95188.0,95181.0,0.210125]
[1736510406709,0.0353,95188.0,95169.0,0.4383914]
[1736510406710,0.210115,95186.0,95169.0,0.4383914]
[1736510406914,0.1279,95180.0,95173.0,0.0072]
[1736510407123,0.0815,95174.0,95173.0,0.0072]
[1736510407331,0.0815,95168.0,95164.0,0.41771999]
[1736510407536,0.1,95170.0,95165.0,0.0072]
[1736510407537,0.0815,95166.0,95165.0,0.0072]
[1736510407754,0.210172,95161.0,95157.0,0.0072]
[1736510407964,0.1276,95152.0,95151.0,0.41771999]
[1736510408139,0.1,95151.0,95148.0,0.00014624]
[1736510408356,0.0046,95152.0,95149.0,0.0072]
[1736510408592,0.1,95151.0,95149.0,0.0072]
[1736510408815,0.00116022,95150.0,95149.0,0.0072]
[1736510409067,0.00116022,95150.0,95124.0,0.41771999]
[1736510409068,0.1046,95148.0,95124.0,0.41771999]
[1736510409276,0.1046,95148.0,95121.0,0.210256]
[1736510409277,0.00576022,95148.0,95130.0,0.0209764]
[1736510409490,0.00576022,95148.0,95140.0,0.0072]
[1736510409697,0.00576022,95148.0,95134.0,0.210228]
[1736510409698,0.00576022,95148.0,95147.0,0.0073704]
[1736510409904,0.00576022,95148.0,95147.0,0.0001704]
[1736510409905,0.23305998,95148.0,95147.0,0.0001704]
[1736510410113,0.1,95142.0,95120.0,0.210259]
[1736510410319,0.21597522,95141.0,95138.0,0.0072]
[1736510410519,0.00116022,95140.0,95138.0,0.0072]
[1736510411355,0.0485,95140.0,95138.0,0.0072]
[1736510411470,0.1,95138.0,95124.0,0.02130031]
[1736510411677,0.1,95131.0,95128.0,0.00724]
[1736510411881,0.00116022,95130.0,95129.0,0.00724]
[1736510412101,0.1,95125.0,95113.0,0.00031687]
[1736510412319,0.1,95117.0,95113.0,0.00031687]
[1736510412541,0.0044,95137.0,95114.0,0.11153976]
[1736510412748,0.0044,95150.0,95120.0,0.12746324]
[1736510412994,0.0044,95150.0,95143.0,0.210208]
[1736510413207,0.0044,95150.0,95144.0,0.00724]
[1736510414063,0.00116022,95149.0,95144.0,0.00724]
[1736510414279,0.02416022,95149.0,95145.0,0.00724]
[1736510414510,0.1,95140.0,95123.0,0.15]
[1736510414721,0.0044,95150.0,95124.0,0.11153976]
[1736510415141,0.00116022,95149.0,95144.0,0.002]
[1736510415344,0.00116022,95149.0,95145.0,0.00724]
[1736510415993,0.00116022,95149.0,95146.0,0.00724]
[1736510416417,0.00116022,95158.0,95146.0,0.00724]
[1736510416631,0.2933918,95159.0,95146.0,0.00724]
[1736510417088,0.00116022,95158.0,95147.0,0.210201]
[1736510417455,0.00014611,95159.0,95149.0,0.210196]
[1736510417698,0.00014611,95159.0,95155.0,0.210181]
[1736510418113,0.00014611,95159.0,95156.0,0.01270381]
[1736510418957,0.00014611,95159.0,95157.0,0.210178]
[1736510419166,0.00014611,95159.0,95156.0,0.01270381]
[1736510419343,0.00014611,95159.0,95158.0,0.01270085]
[1736510419553,0.00014611,95159.0,95158.0,0.210176]
[1736510419754,0.00014611,95159.0,95158.0,0.22287685]
[1736510420640,0.00014611,95159.0,95158.0,0.26628344]
[1736510421607,0.00014611,95159.0,95158.0,0.26728344]
[1736510422023,0.00014611,95159.0,95158.0,0.26628344]
[1736510422296,0.00014611,95159.0,95158.0,0.3705832]
[1736510422617,0.00014611,95159.0,95158.0,0.3765832]
[1736510422826,0.00014611,95159.0,95158.0,0.3735832]
[1736510423057,0.00014611,95159.0,95158.0,0.3745832]
[1736510423437,0.00014611,95159.0,95158.0,0.3705832]
[1736510423682,0.00014611,95159.0,95158.0,0.3785832]
[1736510424474,0.00014611,95159.0,95158.0,0.40392279]
[1736510425083,0.00014611,95159.0,95158.0,0.39192279]
[1736510425281,0.00014611,95159.0,95158.0,0.40492279]
[1736510428637,0.00014611,95159.0,95158.0,0.39692279]
[1736510428857,0.00014611,95159.0,95158.0,0.39192279]
[1736510429029,0.00014611,95159.0,95158.0,0.39992279]
[1736510429266,0.00014611,95159.0,95158.0,0.40492279]
[1736510431246,0.06850091,95187.0,95171.0,0.210146]
[1736510431464,0.06850091,95187.0,95172.0,0.02116823]
[1736510431711,0.06850091,95187.0,95172.0,0.03380416]
[1736510433139,0.023,95188.0,95173.0,0.210143]
[1736510433286,0.02314633,95189.0,95172.0,0.03480416]
[1736510433482,0.21011,95188.0,95174.0,0.01262871]
[1736510433683,0.02314633,95189.0,95175.0,0.03068143]
[1736510433887,0.00014633,95189.0,95175.0,0.04330653]
[1736510434086,0.00014633,95189.0,95175.0,0.14760629]
[1736510434292,0.00014633,95189.0,95185.0,0.210115]
[1736510434521,0.00014633,95189.0,95187.0,0.210112]
[1736510434702,0.00014633,95189.0,95188.0,0.13991209]
[1736510434914,0.00014633,95189.0,95188.0,0.15248408]
[1736510435543,0.00014633,95189.0,95188.0,0.38348408]
[1736510435744,0.00014633,95189.0,95188.0,0.23348408]
[1736510435946,0.00014633,95189.0,95188.0,0.24048408]